fUST/lending_fUST_20250906
["ID","MTS","AMOUNT","RATE_DAILY","PERIOD"]
[383831598,1757136654483,-443.22951419,0.00013972,2]
[383831599,1757136654496,-480.0,0.00013972,2]
[383831600,1757136654506,-480.0,0.00013972,2]
[383831601,1757136654515,-480.0,0.00013972,2]
[383831602,1757136654525,-488.06396617,0.00013972,2]
[383831603,1757136654534,-480.0,0.00013972,2]
[383831604,1757136654544,-480.0,0.00013972,2]
[383831605,1757136654553,-480.0,0.00013972,2]
[383831606,1757136654562,-480.0,0.00013972,2]
[383831607,1757136654572,-536.94718417,0.00013972,2]
[383831608,1757136654582,-480.0,0.00013972,2]
[383831609,1757136654591,-480.0,0.00013972,2]
[383831610,1757136654600,-480.0,0.00013972,2]
[383831611,1757136654610,-480.0,0.00013972,2]
[383831612,1757136654620,-480.0,0.00013972,2]
[383831613,1757136654631,-480.0,0.00013972,2]
[383831614,1757136654642,-480.0,0.00013972,2]
[383831615,1757136654653,-480.0,0.00013972,2]
[383831616,1757136654663,-1939.08,0.00013972,2]
[383831617,1757136654672,-482.23612454,0.00013972,2]
[383831618,1757136654681,-480.0,0.00013972,2]
[383831619,1757136654692,-480.0,0.00013972,2]
[383831620,1757136654702,-480.0,0.00013972,2]
[383831621,1757136654713,-480.0,0.00013972,2]
[383831622,1757136654723,-480.0,0.00013972,2]
[383831623,1757136654734,-480.0,0.00013972,2]
[383831624,1757136654745,-480.0,0.00013972,2]
[383831625,1757136654832,-711.16,0.00013972,2]
[383831626,1757136654843,-481.77836839,0.00013972,2]
[383831627,1757136654853,-486.55325116,0.00013972,2]
[383831628,1757136654863,-790.68,0.00013972,2]
[383831629,1757136654873,-480.0,0.00013972,2]
[383831630,1757136654882,-480.0,0.00013972,2]
[383831631,1757136654892,-480.0,0.00013972,2]
[383831632,1757136654903,-480.0,0.00013972,2]
[383831633,1757136654913,-480.0,0.00013972,2]
[383831634,1757136654926,-480.0,0.00013972,2]
[383831635,1757136654936,-480.0,0.00013972,2]
[383831636,1757136654946,-483.88855983,0.00013972,2]
[383831637,1757136654956,-480.0,0.00013972,2]
[383831638,1757136654965,-483.23601906,0.00013972,2]
[383831639,1757136654974,-481.63731009,0.00013972,2]
[383831640,1757136654984,-480.0,0.00013972,2]
[383831641,1757136654993,-482.08086944,0.00013972,2]
[383831642,1757136655003,-480.0,0.00013972,2]
[383831643,1757136655013,-495.06118208,0.00013972,2]
[383831644,1757136655023,-486.36294161,0.00013972,2]
[383831645,1757136655033,-480.0,0.00013972,2]
[383831646,1757136655043,-483.72149345,0.00013972,2]
[383831647,1757136655053,-480.0,0.00013972,2]
[383831648,1757136655062,-480.0,0.00013972,2]
[383831649,1757136655072,-480.0,0.00013972,2]
[383831650,1757136655082,-480.0,0.00013972,2]
[383831651,1757136655093,-480.0,0.00013972,2]
[383831652,1757136655104,-480.0,0.00013972,2]
[383831653,1757136655113,-480.0,0.00013972,2]
[383831654,1757136655124,-480.0,0.00013972,2]
[383831655,1757136655133,-507.18836732,0.00013972,2]
[383831656,1757136655143,-480.0,0.00013972,2]
[383831657,1757136655153,-480.0,0.00013972,2]
[383831658,1757136655163,-480.0,0.00013972,2]
[383831659,1757136655173,-480.0,0.00013972,2]
[383831660,1757136655183,-480.0,0.00013972,2]
[383831661,1757136655193,-480.0,0.00013972,2]
[383831662,1757136655204,-480.0,0.00013972,2]
[383831663,1757136655214,-480.0,0.00013972,2]
[383831664,1757136655224,-480.0,0.00013972,2]
[383831665,1757136655234,-480.0,0.00013972,2]
[383831666,1757136655244,-480.0,0.00013972,2]
[383831667,1757136655254,-480.0,0.00013972,2]
[383831668,1757136655264,-508.39512613,0.00013972,2]
[383831669,1757136655274,-482.2036957,0.00013972,2]
[383831670,1757136655285,-480.0,0.00013972,2]
[383831671,1757136655294,-480.0,0.00013972,2]
[383831672,1757136655303,-481.32164946,0.00013972,2]
[383831673,1757136655313,-480.0,0.00013972,2]
[383831674,1757136655323,-488.79952195,0.00013972,2]
[383831675,1757136655332,-1218.88,0.00013972,2]
[383831676,1757136655342,-480.83565777,0.00013972,2]
[383831677,1757136655352,-483.90666192,0.00013972,2]
[383831678,1757136655362,-481.17798576,0.00013972,2]
[383831679,1757136655372,-480.0,0.00013972,2]
[383831680,1757136655382,-480.0,0.00013972,2]
[383831681,1757136655392,-480.0,0.00013972,2]
[383831682,1757136655401,-481.77880227,0.00013972,2]
[383831683,1757136655411,-480.29364274,0.00013972,2]
[383831684,1757136655420,-480.0,0.00013972,2]
[383831685,1757136655430,-480.0,0.00013972,2]
[383831686,1757136655440,-480.0,0.00013972,2]
[383831687,1757136655450,-480.0,0.00013972,2]
[383831688,1757136655459,-480.0,0.00013972,2]
[383831689,1757136655469,-480.0,0.00013972,2]
[383831690,1757136655478,-487.16865222,0.00013972,2]
[383831691,1757136655487,-480.0,0.00013972,2]
[383831692,1757136655496,-480.0,0.00013972,2]
[383831693,1757136655506,-480.0,0.00013972,2]
[383831694,1757136655515,-480.0,0.00013972,2]
[383831695,1757136655524,-635.69,0.00013972,2]
[383831696,1757136655534,-480.0,0.00013972,2]
[383831697,1757136655543,-441.88219619,0.00013972,2]
[383831698,1757136655553,-483.27997842,0.00013972,2]
[383831699,1757136655562,-857.19,0.00013972,2]
[383831700,1757136655572,-480.0,0.00013972,2]
[383831701,1757136655581,-480.0,0.00013972,2]
[383831702,1757136655591,-480.0,0.00013972,2]
[383831703,1757136655601,-480.0,0.00013972,2]
[383831704,1757136655610,-480.0,0.00013972,2]
[383831705,1757136655619,-480.0,0.00013972,2]
[383831706,1757136655630,-480.0,0.00013972,2]
[383831707,1757136655640,-480.0,0.00013972,2]
[383831708,1757136655650,-481.89900978,0.00013972,2]
[383831709,1757136655660,-487.23432332,0.00013972,2]
[383831710,1757136655669,-480.0,0.00013972,2]
[383831711,1757136655679,-480.0,0.00013972,2]
[383831712,1757136655688,-480.0,0.00013972,2]
[383831713,1757136655698,-480.0,0.00013972,2]
[383831714,1757136655707,-480.0,0.00013972,2]
[383831715,1757136655717,-480.0,0.00013972,2]
[383831716,1757136655726,-480.0,0.00013972,2]
[383831717,1757136655736,-480.0,0.00013972,2]
[383831718,1757136655746,-480.0,0.00013972,2]
[383831719,1757136655756,-480.0,0.00013972,2]
[383831720,1757136655766,-480.0,0.00013972,2]
[383831721,1757136655775,-480.0,0.00013972,2]
[383831722,1757136655785,-480.0,0.00013972,2]
[383831723,1757136655795,-480.0,0.00013972,2]
[383831724,1757136655805,-480.0,0.00013972,2]
[383831725,1757136655815,-480.0,0.00013972,2]
[383831726,1757136655824,-480.0,0.00013972,2]
[383831727,1757136655834,-5321.85,0.00013972,2]
[383831728,1757136655843,-480.0,0.00013972,2]
[383831729,1757136655853,-480.0,0.00013972,2]
[383831730,1757136655863,-547.76380543,0.00013972,2]
[383831731,1757136655873,-480.0,0.00013972,2]
[383831732,1757136655883,-480.0,0.00013972,2]
[383831733,1757136655892,-483.32762177,0.00013972,2]
[383831734,1757136655901,-480.0,0.00013972,2]
[383831735,1757136655911,-481.88411313,0.00013972,2]
[383831736,1757136655921,-480.0,0.00013972,2]
[383831737,1757136655930,-480.0,0.00013972,2]
[383831738,1757136655939,-480.0,0.00013972,2]
[383831739,1757136655949,-480.0,0.00013972,2]
[383831740,1757136655958,-480.0,0.00013972,2]
[383831741,1757136655968,-480.0,0.00013972,2]
[383831742,1757136655977,-480.0,0.00013972,2]
[383831743,1757136655987,-480.0,0.00013972,2]
[383831744,1757136655996,-480.0,0.00013972,2]
[383831745,1757136656006,-480.0,0.00013972,2]
[383831746,1757136656016,-480.0,0.00013972,2]
[383831747,1757136656099,-480.0,0.00013972,2]
[383831748,1757136656110,-165.58798338,0.00013972,2]
[383831749,1757136656120,-480.0,0.00013972,2]
[383831750,1757136656129,-480.0,0.00013972,2]
[383831751,1757136656139,-5458.86,0.00013972,2]
[383831752,1757136656150,-480.0,0.00013972,2]
[383831753,1757136656159,-1406.98,0.00013972,2]
[383831754,1757136656168,-480.0,0.00013972,2]
[383831755,1757136656178,-480.0,0.00013972,2]
[383831756,1757136656187,-480.0,0.00013972,2]
[383831757,1757136656196,-480.0,0.00013972,2]
[383831758,1757136656206,-832.86,0.00013972,2]
[383831759,1757136656215,-480.0,0.00013972,2]
[383831760,1757136656225,-480.0,0.00013972,2]
[383831761,1757136656235,-1162.53,0.00013972,2]
[383831762,1757136656244,-480.0,0.00013972,2]
[383831763,1757136656254,-480.0,0.00013972,2]
[383831764,1757136656264,-480.0,0.00013972,2]
[383831765,1757136656274,-480.0,0.00013972,2]
[383831766,1757136656284,-480.0,0.00013972,2]
[383831767,1757136656294,-763.62,0.00013972,2]
[383831768,1757136656303,-483.96329677,0.00013972,2]
[383831769,1757136656313,-484.10674718,0.00013972,2]
[383831770,1757136656322,-485.56486973,0.00013972,2]
[383831771,1757136656332,-486.01567039,0.00013972,2]
[383831772,1757136656343,-490.48016069,0.00013972,2]
[383831773,1757136656352,-480.0,0.00013972,2]
[383831774,1757136656361,-491.43,0.00013972,2]
[383831775,1757136656371,-480.0,0.00013972,2]
[383831776,1757136656382,-323.07144135,0.00013972,2]
[383831777,1757136656393,-483.48874222,0.00013972,2]
[383831778,1757136656403,-483.41344982,0.00013972,2]
[383831779,1757136656413,-500.0,0.00013973,2]
[383831780,1757136656423,-500.0,0.00013973,2]
[383831781,1757136656435,-500.50899326,0.00013973,2]
[383831782,1757136656445,-500.0,0.00013973,2]
[383831783,1757136656457,-500.26947877,0.00013973,2]
[383831784,1757136656467,-500.0,0.00013973,2]
[383831785,1757136656476,-2154.0,0.00013983,2]
[383831786,1757136656486,-652.463,0.00013983,2]
[383831787,1757136656495,-206.31313436,0.00013989,2]
[383831788,1757136656505,-100000.0,0.0001399,2]
[383831789,1757136656517,-25250.92214517,0.00014,2]
[383831790,1757136656793,-147099.54318593,0.00014,2]
[383831791,1757136656808,-151.0,0.00014,2]
[383831792,1757136656823,-388.1946953,0.00014,2]
[383831793,1757136656837,-388.5765985,0.00014,2]
[383831794,1757136656851,-393.1775526,0.00014,2]
[383831795,1757136656867,-168.0,0.00014007,2]
[383831796,1757136656882,-2197.35494139,0.0001402,2]
[383831797,1757136656897,-5906.06278371,0.0001408,2]
[383831798,1757136656911,-1193.2528517,0.000141,2]
[383831799,1757136656926,-388.4804453,0.000141,2]
[383831800,1757136656941,-500.0,0.00014119,2]
[383831801,1757136656956,-548.68236006,0.00014119,2]
[383831802,1757136656971,-500.0,0.00014119,2]
[383831803,1757136656987,-229.84602314,0.00014119,2]
[383831804,1757136657000,-500.0,0.00014119,2]
[383831805,1757136657010,-500.0,0.00014119,2]
[383831806,1757136657019,-157.0,0.00014119,2]
[383831807,1757136657028,-500.0,0.00014119,2]
[383831808,1757136657037,-14176.2987788,0.00014146,2]
[383831809,1757136657048,-363.66498283,0.00014221,2]
[383831810,1757136657057,-298.23054015,0.00014221,2]
[383831811,1757136657067,-500.90828003,0.00014221,2]
[383831812,1757136657076,-1000.0,0.00014221,2]
[383831813,1757136657086,-1000.0,0.00014221,2]
[383831814,1757136657096,-1000.0,0.00014221,2]
[383831815,1757136657105,-500.0,0.00014221,2]
[383831816,1757136657115,-503.47937054,0.00014221,2]
[383831817,1757136657125,-1000.0,0.00014221,2]
[383831818,1757136657135,-650.45241495,0.00014221,2]
[383831819,1757136657145,-344.58919445,0.00014221,2]
[383831820,1757136657155,-502.01557013,0.00014221,2]
[383831821,1757136657165,-501.1281327,0.00014221,2]
[383831822,1757136657176,-500.8973808,0.00014221,2]
[383831823,1757136657187,-1000.0,0.00014221,2]
[383831824,1757136657196,-500.0,0.00014221,2]
[383831825,1757136657207,-1000.0,0.00014221,2]
[383831826,1757136657216,-1000.0,0.00014221,2]
[383831827,1757136657226,-500.0,0.00014221,2]
[383831828,1757136657447,-1000.0,0.00014221,2]
[383831829,1757136657460,-246.26132631,0.00014221,2]
[383831830,1757136657471,-500.87498815,0.00014221,2]
[383831831,1757136657481,-292.31718522,0.00014221,2]
[383831832,1757136657491,-500.0,0.00014238,2]
[383831833,1757136657503,-290.28030425,0.00014238,2]
[383831834,1757136657513,-500.0,0.00014238,2]
[383831835,1757136657523,-653.87650433,0.00014238,2]
[383831836,1757136657533,-531.86254388,0.00014238,2]
[383831837,1757136657543,-291.19332642,0.00014238,2]
[383831838,1757136657553,-290.43450358,0.00014238,2]
[383831839,1757136657562,-500.0,0.00014238,2]
[383831840,1757136657572,-157.0,0.00014238,2]
[383831841,1757136657582,-212.91389271,0.00014238,2]
[383831842,1757136657591,-157.0,0.00014238,2]
[383831843,1757136657601,-500.0,0.00014238,2]
[383831844,1757136657612,-500.0,0.00014238,2]
[383831845,1757136657623,-500.0,0.00014238,2]
[383831846,1757136657634,-248.30413418,0.00014238,2]
[383831847,1757136657643,-590.32145308,0.00014238,2]
[383831848,1757136657653,-500.0,0.00014238,2]
[383831849,1757136657662,-3051.47,0.00014244,2]
[383831850,1757136657672,-480.0,0.00014246,2]
[383831851,1757136657681,-357.62907875,0.00014246,2]
[383831852,1757136657692,-480.0,0.00014246,2]
[383831853,1757136657702,-301.64501856,0.00014246,2]
[383831854,1757136657712,-480.0,0.00014246,2]
[383831855,1757136657722,-480.0,0.00014246,2]
[383831856,1757136657732,-488.8202811,0.00014246,2]
[383831857,1757136657741,-480.0,0.00014246,2]
[383831858,1757136657751,-305.5094072,0.00014246,2]
[383831859,1757136657760,-480.0,0.00014246,2]
[383831860,1757136657770,-480.0,0.00014246,2]
[383831861,1757136657780,-480.0,0.00014246,2]
[383831862,1757136657790,-480.0,0.00014246,2]
[383831863,1757136657799,-480.0,0.00014246,2]
[383831864,1757136657810,-337.22089066,0.00014246,2]
[383831865,1757136657821,-579.50995193,0.00014246,2]
[383831866,1757136657831,-483.49735075,0.00014246,2]
[383831867,1757136657841,-480.0,0.00014246,2]
[383831868,1757136657852,-482.57595267,0.00014246,2]
[383831869,1757136657862,-471.40053704,0.00014246,2]
[383831870,1757136657873,-480.0,0.00014246,2]
[383831871,1757136657884,-538.83048303,0.00014246,2]
[383831872,1757136657894,-484.54481576,0.00014246,2]
[383831873,1757136657903,-285.29932663,0.00014246,2]
[383831874,1757136657913,-480.0,0.00014246,2]
[383831875,1757136657923,-480.0,0.00014246,2]
[383831876,1757136657932,-480.0,0.00014246,2]
[383831877,1757136657943,-480.0,0.00014246,2]
[383831878,1757136657955,-480.0,0.00014246,2]
[383831879,1757136657966,-496.18707859,0.00014246,2]
[383831880,1757136657975,-483.40365127,0.00014246,2]
[383831881,1757136657986,-480.0,0.00014246,2]
[383831882,1757136657995,-484.85382911,0.00014246,2]
[383831883,1757136658006,-480.0,0.00014246,2]
[383831884,1757136658017,-483.99051101,0.00014246,2]
[383831885,1757136658028,-480.0,0.00014246,2]
[383831886,1757136658039,-480.0,0.00014246,2]
[383831887,1757136658048,-307.55232212,0.00014246,2]
[383831888,1757136658058,-480.0,0.00014246,2]
[383831889,1757136658068,-480.0,0.00014246,2]
[383831890,1757136658078,-480.0,0.00014246,2]
[383831891,1757136658087,-480.0,0.00014246,2]
[383831892,1757136658097,-480.0,0.00014246,2]
[383831893,1757136658107,-483.40738805,0.00014246,2]
[383831894,1757136658116,-488.99738426,0.00014246,2]
[383831895,1757136658126,-483.84355051,0.00014246,2]
[383831896,1757136658136,-480.0,0.00014246,2]
[383831897,1757136658146,-480.0,0.00014246,2]
[383831898,1757136658156,-480.0,0.00014246,2]
[383831899,1757136658166,-480.0,0.00014246,2]
[383831900,1757136658175,-484.68273282,0.00014246,2]
[383831901,1757136658185,-480.0,0.00014246,2]
[383831902,1757136658194,-480.0,0.00014246,2]
[383831903,1757136658203,-480.0,0.00014246,2]
[383831904,1757136658213,-482.85399406,0.00014246,2]
[383831905,1757136658223,-480.0,0.00014246,2]
[383831906,1757136658233,-483.6619206,0.00014246,2]
[383831907,1757136658242,-230.52960708,0.00014246,2]
[383831908,1757136658252,-480.0,0.00014246,2]
[383831909,1757136658262,-480.0,0.00014246,2]
[383831910,1757136658271,-480.0,0.00014246,2]
[383831911,1757136658281,-480.0,0.00014246,2]
[383831912,1757136658290,-480.0,0.00014246,2]
[383831913,1757136658300,-480.0,0.00014246,2]
[383831914,1757136658309,-496.47208194,0.00014246,2]
[383831915,1757136658319,-480.0,0.00014246,2]
[383831916,1757136658328,-480.0,0.00014246,2]
[383831917,1757136658337,-480.0,0.00014246,2]
[383831918,1757136658347,-480.0,0.00014246,2]
[383831919,1757136658357,-480.0,0.00014246,2]
[383831920,1757136658366,-482.2908076,0.00014246,2]
[383831921,1757136658376,-480.0,0.00014246,2]
[383831922,1757136658388,-480.0,0.00014246,2]
[383831923,1757136658397,-480.0,0.00014246,2]
[383831924,1757136658407,-480.0,0.00014246,2]
[383831925,1757136658416,-480.0,0.00014246,2]
[383831926,1757136658427,-480.0,0.00014246,2]
[383831927,1757136658437,-480.0,0.00014246,2]
[383831928,1757136658446,-480.0,0.00014246,2]
[383831929,1757136658456,-480.0,0.00014246,2]
[383831930,1757136658466,-483.0916347,0.00014246,2]
[383831931,1757136658476,-490.39030135,0.00014246,2]
[383831932,1757136658486,-480.0,0.00014246,2]
[383831933,1757136658496,-480.0,0.00014246,2]
[383831934,1757136658506,-480.0,0.00014246,2]
[383831935,1757136658515,-480.0,0.00014246,2]
[383831936,1757136658525,-487.83292885,0.00014246,2]
[383831937,1757136658534,-508.7254577,0.00014246,2]
[383831938,1757136658544,-480.0,0.00014246,2]
[383831939,1757136658554,-480.0,0.00014246,2]
[383831940,1757136658563,-480.0,0.00014246,2]
[383831941,1757136658573,-480.0,0.00014246,2]
[383831942,1757136658582,-480.0,0.00014246,2]
[383831943,1757136658591,-484.37420246,0.00014246,2]
[383831944,1757136658601,-480.0,0.00014246,2]
[383831945,1757136658611,-480.0,0.00014246,2]
[383831946,1757136658622,-480.0,0.00014246,2]
[383831947,1757136658632,-609.50926572,0.00014246,2]
[383831948,1757136658641,-202.44040254,0.00014246,2]
[383831949,1757136658651,-480.0,0.00014246,2]
[383831950,1757136658661,-402.72440793,0.00014246,2]
[383831951,1757136658671,-480.0,0.00014246,2]
[383831952,1757136658680,-480.0,0.00014246,2]
[383831953,1757136658689,-480.2,0.00014246,2]
[383831954,1757136658699,-480.0,0.00014246,2]
[383831955,1757136658709,-480.0,0.00014246,2]
[383831956,1757136658718,-480.0,0.00014246,2]
[383831957,1757136658728,-480.0,0.00014246,2]
[383831958,1757136658738,-484.37658808,0.00014246,2]
[383831959,1757136658747,-480.0,0.00014246,2]
[383831960,1757136658757,-480.0,0.00014246,2]
[383831961,1757136658766,-480.0,0.00014246,2]
[383831962,1757136658776,-489.4396633,0.00014246,2]
[383831963,1757136658786,-480.0,0.00014246,2]
[383831964,1757136658796,-480.0,0.00014246,2]
[383831965,1757136658807,-490.44269062,0.00014246,2]
[383831966,1757136658816,-480.0,0.00014246,2]
[383831967,1757136658826,-480.0,0.00014246,2]
[383831968,1757136658835,-480.0,0.00014246,2]
[383831969,1757136658846,-480.0,0.00014246,2]
[383831970,1757136658857,-480.0,0.00014246,2]
[383831971,1757136658866,-480.0,0.00014246,2]
[383831972,1757136658876,-480.0,0.00014246,2]
[383831973,1757136658885,-480.0,0.00014246,2]
[383831974,1757136658895,-480.0,0.00014246,2]
[383831975,1757136658904,-480.0,0.00014246,2]
[383831976,1757136658914,-424.8817463,0.00014246,2]
[383831977,1757136658923,-480.0,0.00014246,2]
[383831978,1757136658933,-480.0,0.00014246,2]
[383831979,1757136658943,-597.94220811,0.00014246,2]
[383831980,1757136658953,-480.0,0.00014246,2]
[383831981,1757136658962,-480.0,0.00014246,2]
[383831982,1757136658972,-480.0,0.00014246,2]
[383831983,1757136658981,-480.0,0.00014246,2]
[383831984,1757136658991,-481.40088777,0.00014246,2]
[383831985,1757136659000,-480.0,0.00014246,2]
[383831986,1757136659010,-480.0,0.00014246,2]
[383831987,1757136659019,-480.0,0.00014246,2]
[383831988,1757136659029,-480.0,0.00014246,2]
[383831989,1757136659039,-480.0,0.00014246,2]
[383831990,1757136659048,-480.0,0.00014246,2]
[383831991,1757136659057,-480.0,0.00014246,2]
[383831992,1757136659067,-480.0,0.00014246,2]
[383831993,1757136659077,-480.0,0.00014246,2]
[383831994,1757136659088,-480.0,0.00014246,2]
[383831995,1757136659099,-486.33439939,0.00014246,2]
[383831996,1757136659108,-480.0,0.00014246,2]
[383831997,1757136659121,-480.0,0.00014246,2]
[383831998,1757136659131,-480.0,0.00014246,2]
[383831999,1757136659141,-480.0,0.00014246,2]
[383832000,1757136659151,-480.0,0.00014246,2]
[383832001,1757136659161,-480.0,0.00014246,2]
[383832002,1757136659171,-480.0,0.00014246,2]
[383832003,1757136659180,-480.0,0.00014246,2]
[383832004,1757136659190,-480.0,0.00014246,2]
[383832005,1757136659199,-480.0,0.00014246,2]
[383832006,1757136659209,-480.0,0.00014246,2]
[383832007,1757136659219,-480.0,0.00014246,2]
[383832008,1757136659228,-480.0,0.00014246,2]
[383832009,1757136659238,-480.0,0.00014246,2]
[383832010,1757136659248,-480.0,0.00014246,2]
[383832011,1757136659258,-523.46463686,0.00014246,2]
[383832012,1757136659267,-486.33919146,0.00014246,2]
[383832013,1757136659277,-480.0,0.00014246,2]
[383832014,1757136659286,-480.0,0.00014246,2]
[383832015,1757136659296,-484.30617493,0.00014246,2]
[383832016,1757136659305,-480.0,0.00014246,2]
[383832017,1757136659315,-489.3578687,0.00014246,2]
[383832018,1757136659324,-489.76037172,0.00014246,2]
[383832019,1757136659334,-480.0,0.00014246,2]
[383832020,1757136659344,-480.0,0.00014246,2]
[383832021,1757136659353,-480.0,0.00014246,2]
[383832022,1757136659363,-480.0,0.00014246,2]
[383832023,1757136659372,-480.0,0.00014246,2]
[383832024,1757136659384,-1733.51,0.00014246,2]
[383832025,1757136659394,-480.0,0.00014246,2]
[383832026,1757136659404,-480.0,0.00014246,2]
[383832027,1757136659414,-480.0,0.00014246,2]
[383832028,1757136659424,-487.16833194,0.00014246,2]
[383832029,1757136659434,-1311.17,0.00014246,2]
[383832030,1757136659444,-480.0,0.00014246,2]
[383832031,1757136659454,-480.0,0.00014246,2]
[383832032,1757136659465,-484.15995961,0.00014246,2]
[383832033,1757136659476,-482.21196811,0.00014246,2]
[383832034,1757136659487,-480.0,0.00014246,2]
[383832035,1757136659497,-480.0,0.00014246,2]
[383832036,1757136659507,-702.61,0.00014246,2]
[383832037,1757136659518,-556.96,0.00014246,2]
[383832038,1757136659528,-480.0,0.00014246,2]
[383832039,1757136659538,-480.0,0.00014246,2]
[383832040,1757136659549,-363.91014507,0.00014246,2]
[383832041,1757136659558,-480.0,0.00014246,2]
[383832042,1757136659568,-480.0,0.00014246,2]
[383832043,1757136659578,-480.0,0.00014246,2]
[383832044,1757136659587,-480.0,0.00014246,2]
[383832045,1757136659597,-943.22,0.00014246,2]
[383832046,1757136659607,-480.0,0.00014246,2]
[383832047,1757136659620,-480.0,0.00014246,2]
[383832048,1757136659629,-480.0,0.00014246,2]
[383832049,1757136659639,-22593.06,0.00014246,2]
[383832050,1757136659649,-480.0,0.00014246,2]
[383832051,1757136659659,-487.57658633,0.00014246,2]
[383832052,1757136659668,-480.0,0.00014246,2]
[383832053,1757136659678,-480.0,0.00014246,2]
[383832054,1757136659688,-480.0,0.00014246,2]
[383832055,1757136659698,-480.0,0.00014246,2]
[383832056,1757136659708,-508.31326227,0.00014246,2]
[383832057,1757136659718,-480.0,0.00014246,2]
[383832058,1757136659727,-484.37729036,0.00014246,2]
[383832059,1757136659737,-347.01706887,0.00014246,2]
[383832060,1757136659747,-480.0,0.00014246,2]
[383832061,1757136659756,-480.0,0.00014246,2]
[383832062,1757136659766,-486.25905492,0.00014246,2]
[383832063,1757136659776,-151.2867244,0.00014246,2]
[383832064,1757136659786,-495.67956517,0.00014246,2]
[383832065,1757136659797,-1939.08,0.00014246,2]
[383832066,1757136659806,-480.0,0.00014246,2]
[383832067,1757136659816,-480.0,0.00014246,2]
[383832068,1757136659826,-480.0,0.00014246,2]
[383832069,1757136659835,-484.24537994,0.00014246,2]
[383832070,1757136659845,-480.0,0.00014246,2]
[383832071,1757136659855,-480.0,0.00014246,2]
[383832072,1757136659865,-480.0,0.00014246,2]
[383832073,1757136659875,-711.16,0.00014246,2]
[383832074,1757136659885,-790.68,0.00014246,2]
[383832075,1757136659895,-480.0,0.00014246,2]
[383832076,1757136659905,-480.0,0.00014246,2]
[383832077,1757136659915,-480.0,0.00014246,2]
[383832078,1757136659925,-480.0,0.00014246,2]
[383832079,1757136659935,-480.0,0.00014246,2]
[383832080,1757136659945,-480.0,0.00014246,2]
[383832081,1757136659956,-166.6072476,0.00014246,2]
[383832082,1757136659967,-480.0,0.00014246,2]
[383832083,1757136659977,-480.0,0.00014246,2]
[383832084,1757136659986,-468.93857904,0.00014246,2]
[383832085,1757136659997,-480.0,0.00014246,2]
[383832086,1757136660007,-480.0,0.00014246,2]
[383832087,1757136660017,-480.0,0.00014246,2]
[383832088,1757136660028,-480.0,0.00014246,2]
[383832089,1757136660038,-480.0,0.00014246,2]
[383832090,1757136660048,-480.0,0.00014246,2]
[383832091,1757136660058,-480.0,0.00014246,2]
[383832092,1757136660068,-480.0,0.00014246,2]
[383832093,1757136660078,-480.0,0.00014246,2]
[383832094,1757136660088,-480.0,0.00014246,2]
[383832095,1757136660099,-480.0,0.00014246,2]
[383832096,1757136660110,-480.0,0.00014246,2]
[383832097,1757136660120,-480.0,0.00014246,2]